bitfinex-derivatives/quotes_SOLF0:USTF0_20251002
["timestamp","ask_amount","ask_price","bid_price","bid_amount"]
[1759382016914,10.90547527,223.86,223.84,7.35]
[1759382017213,7.83,223.86,223.84,7.35]
[1759382019114,10.90573473,223.85,223.78,11.3695]
[1759382019313,3.07573473,223.84,223.78,11.3695]
[1759382019617,7.83,223.9,223.78,11.3695]
[1759382019818,3.07579477,223.89,223.78,11.3695]
[1759382020016,3.07579477,223.88,223.78,11.3695]
[1759382020315,7.83,223.86,223.78,11.3695]
[1759382020512,3.07579477,223.85,223.78,11.3695]
[1759382020709,7.83,223.86,223.78,11.3695]
[1759382020710,10.90579477,223.84,223.78,11.3695]
[1759382020908,7.83,223.84,223.78,11.3695]
[1759382021315,7.83,223.82,223.79,7.35]
[1759382021713,7.83,223.85,223.79,7.35]
[1759382022009,3.08152359,223.84,223.79,4.0194]
[1759382022315,7.83,223.85,223.79,4.0194]
[1759382022514,3.08124368,223.84,223.79,4.0194]
[1759382022711,7.83,223.85,223.79,4.0194]
[1759382023009,3.08124368,223.84,223.79,4.0194]
[1759382023215,3.08163107,223.83,223.8,7.35]
[1759382023411,7.83,223.84,223.8,7.35]
[1759382024007,7.83,223.88,223.8,7.35]
[1759382024215,3.08141503,223.87,223.8,7.35]
[1759382024416,3.08141503,223.86,223.8,7.35]
[1759382024616,3.08141503,223.85,223.79,4.0194]
[1759382024912,10.91141503,223.84,223.8,7.35]
[1759382025117,7.83,223.84,223.79,4.0194]
[1759382026017,7.83,223.84,223.8,7.35]
[1759382026213,7.83,223.84,223.79,4.0194]
[1759382026713,7.83,223.84,223.8,7.35]
[1759382027105,4.0179,223.89,223.79,4.0194]
[1759382027312,14.92983812,223.88,223.8,7.35]
[1759382027515,3.08173812,223.87,223.8,7.35]
[1759382027712,3.08173812,223.86,223.8,11.3692]
[1759382027918,7.83,223.88,223.8,7.35]
[1759382028119,3.08155844,223.87,223.8,7.35]
[1759382028319,3.08155844,223.86,223.8,7.35]
[1759382028518,7.83,223.88,223.8,7.35]
[1759382028716,3.08172043,223.87,223.82,2.1539804]
[1759382028918,3.0811924,223.9,223.86,7.35]
[1759382029118,13.60410343,223.95,223.86,7.35]
[1759382029419,3.0811891,223.94,223.86,7.35]
[1759382029620,3.0811891,223.93,223.86,7.35]
[1759382029817,3.0811891,223.92,223.86,7.35]
[1759382030114,3.0811891,223.91,223.85,2.1539804]
[1759382030319,3.0811891,223.9,223.85,2.1539804]
[1759382030517,13.60410343,223.95,223.86,7.35]
[1759382030817,13.60410343,223.95,223.87,4.018]
[1759382030818,3.06401158,223.94,223.87,4.018]
[1759382031021,3.06401158,223.93,223.87,4.018]
[1759382031219,10.89401158,223.92,223.88,7.35]
[1759382031417,3.06401158,223.91,223.88,7.35]
[1759382031611,3.06401158,223.9,223.88,7.35]
[1759382031816,7.83,223.92,223.88,7.35]
[1759382032015,3.06360971,223.91,223.88,7.35]
[1759382032218,7.83,223.92,223.88,7.35]
[1759382032427,3.06313965,223.91,223.88,7.35]
[1759382032615,7.83,223.92,223.88,7.35]
[1759382032817,3.06313947,223.91,223.88,7.35]
[1759382033018,7.83,223.92,223.88,7.35]
[1759382033219,3.06313947,223.91,223.88,7.35]
[1759382033418,7.83,223.92,223.88,7.35]
[1759382033615,3.06269479,223.91,223.88,7.35]
[1759382033830,7.83,223.92,223.87,4.018]
[1759382034019,3.06269479,223.91,223.88,7.62]
[1759382034218,7.71,223.94,223.88,7.62]
[1759382034418,7.71,223.92,223.88,7.62]
[1759382034618,3.06227391,223.91,223.88,7.62]
[1759382034920,7.71,223.92,223.88,7.62]
[1759382035110,3.06225616,223.91,223.88,7.62]
[1759382035317,7.71,223.92,223.88,7.62]
[1759382035717,7.71,223.94,223.88,7.62]
[1759382035918,7.71,223.92,223.88,7.62]
[1759382036318,7.71,223.92,223.87,4.018]
[1759382036612,7.71,223.92,223.88,7.62]
[1759382037021,7.71,223.92,223.87,4.018]
[1759382037221,7.71,223.92,223.88,7.62]
[1759382038126,7.71,223.92,223.87,4.018]
[1759382038728,7.71,223.92,223.88,7.62]
[1759382039324,7.71,223.92,223.87,4.018]
[1759382039526,3.05915484,223.94,223.87,4.018]
[1759382039831,13.48410343,223.95,223.88,7.62]
[1759382040030,3.05915249,223.94,223.88,7.62]
[1759382040327,13.48410343,223.95,223.88,7.62]
[1759382040529,3.05908773,223.94,223.88,7.62]
[1759382040730,13.48410343,223.95,223.88,7.62]
[1759382040929,3.05908656,223.94,223.88,7.62]
[1759382041230,13.48410343,223.95,223.88,7.62]
[1759382041424,3.05902507,223.94,223.88,7.62]
[1759382041619,3.05861357,223.94,223.88,7.62]
[1759382042026,3.05861357,223.94,223.89,4.0177]
[1759382042226,3.05839882,223.96,223.9,7.62]
[1759382042426,7.71,223.97,223.87,2.1539804]
[1759382042627,7.71,223.95,223.87,7.62]
[1759382042828,7.71,223.93,223.87,7.62]
[1759382043029,7.71,223.91,223.87,7.62]
[1759382043331,7.71,223.93,223.87,7.62]
[1759382043532,7.71,223.91,223.87,7.62]
[1759382043727,7.71,223.91,223.85,4.0183]
[1759382043934,7.71,223.91,223.86,7.62]
[1759382044726,7.71,223.91,223.85,4.0183]
[1759382045130,7.71,223.91,223.85,11.6383]
[1759382046736,7.71,223.91,223.87,4.018]
[1759382046937,7.71,223.96,223.88,7.62]
[1759382047136,7.71,223.94,223.88,7.62]
[1759382047332,3.05775098,223.93,223.88,7.62]
[1759382047638,7.71,223.92,223.88,7.62]
[1759382047834,7.71,223.96,223.88,7.62]
[1759382048035,3.05759973,223.95,223.88,7.62]
[1759382048338,3.05759973,223.94,223.88,7.62]
[1759382048538,3.05759973,223.95,223.88,7.62]
[1759382048734,3.05759973,223.94,223.88,7.62]
[1759382048941,10.76759973,223.95,223.91,7.62]
[1759382049138,3.05759973,223.94,223.91,7.62]
[1759382049639,7.71,223.95,223.91,7.62]
[1759382050031,7.71,223.95,223.9,4.0174]
[1759382050237,7.71,223.95,223.91,7.62]
[1759382052135,7.71,223.95,223.92,4.0171]
[1759382052335,7.71,223.96,223.93,7.62]
[1759382053435,7.71,223.96,223.94,4.0168]
[1759382053642,7.71,224.02,223.95,7.62]
[1759382053940,3.05500239,224.01,223.95,7.62]
[1759382054240,2.1539804,224.03,223.95,7.62]
[1759382054241,3.05500239,224.0,223.95,7.62]
[1759382054442,7.71,223.98,223.95,7.62]
[1759382055537,4.0155,224.02,223.91,11.6372]
[1759382055737,7.71,223.98,223.91,11.6372]
[1759382055942,7.71,223.98,223.93,4.017]
[1759382056338,7.71,224.0,223.93,4.017]
[1759382056743,10.76318258,224.0,223.93,4.017]
[1759382056941,3.05318258,223.99,223.93,4.017]
[1759382057142,7.71,224.0,223.93,4.017]
[1759382057444,10.76318258,224.0,223.93,4.017]
[1759382057642,3.05318258,223.99,223.93,4.017]
[1759382057842,7.71,224.0,223.93,11.637]
[1759382061255,7.71,224.0,223.95,4.0166]
[1759382061457,10.54131656,224.02,223.95,4.0166]
[1759382061858,3.05131656,224.01,223.95,4.0166]
[1759382062059,7.49,224.02,223.95,4.0166]
[1759382062551,10.54131656,224.02,223.95,4.0166]
[1759382062757,3.05131656,224.01,223.95,4.0166]
[1759382063455,7.49,224.02,223.95,4.0166]
[1759382063659,7.49,224.02,223.94,7.18]
[1759382063858,10.54131656,224.02,223.94,7.18]
[1759382064059,3.05131656,224.01,223.94,7.18]
[1759382064362,7.66,224.0,223.94,7.18]
[1759382064660,10.71131656,224.0,223.94,7.18]
[1759382064859,7.66,224.0,223.94,7.18]
[1759382067262,10.71115985,223.99,223.9,11.6774]
[1759382067451,7.66,223.97,223.9,11.6774]
[1759382068261,7.66,223.97,223.92,4.0172]
[1759382068456,4.0156,224.01,223.92,4.0172]
[1759382068653,10.71381194,224.0,223.92,4.0172]
[1759382068861,3.05381194,223.99,223.92,4.0172]
[1759382069358,3.05381194,223.98,223.92,4.0172]
[1759382069557,7.66,223.98,223.92,4.0172]
[1759382069758,7.66,223.97,223.89,77.1977]
[1759382070062,7.66,223.96,223.89,77.1977]
[1759382073461,3.05951543,223.95,223.89,77.1977]
[1759382073661,7.66,223.93,223.89,77.1977]
[1759382073861,4.0163,223.98,223.89,77.1977]
[1759382074062,10.71964873,223.97,223.89,84.8577]
[1759382074263,3.05964873,223.96,223.89,84.8577]
[1759382074564,3.05964873,223.95,223.89,84.8577]
[1759382074865,10.71964873,223.94,223.89,77.1977]
[1759382075066,10.71964873,223.94,223.9,7.66]
[1759382075067,7.66,223.94,223.9,7.66]
[1759382076169,7.66,223.94,223.89,77.1977]
[1759382076564,7.66,223.94,223.9,7.66]
[1759382076762,7.66,223.94,223.89,77.1977]
[1759382077171,7.66,223.94,223.9,7.66]
[1759382077464,7.66,223.94,223.89,77.1977]
[1759382077864,7.66,223.96,223.89,73.18]
[1759382078059,7.66,223.99,223.89,73.18]
[1759382078259,8.43730623,223.99,223.89,73.18]
[1759382078466,3.07760305,223.98,223.89,73.18]
[1759382078671,7.66,223.96,223.89,73.18]
[1759382078868,3.07760305,223.95,223.89,73.18]
[1759382079063,10.73760305,223.94,223.89,73.18]
[1759382079269,3.07760305,223.93,223.9,7.66]
[1759382079466,7.66,223.94,223.9,7.66]
[1759382079661,3.07782879,223.93,223.9,7.66]
[1759382079860,7.66,223.98,223.9,7.66]
[1759382080062,3.07781004,223.97,223.9,7.66]
[1759382080270,3.07781004,223.96,223.9,7.66]
[1759382080466,3.07781004,223.95,223.89,73.18]
[1759382080771,3.07781004,223.94,223.9,7.66]
[1759382081069,9.0377234,223.98,223.9,7.66]
[1759382081369,3.07776463,223.97,223.9,7.66]
[1759382081565,3.07776463,223.96,223.9,7.66]
[1759382081759,3.07776463,223.95,223.89,73.18]
[1759382081974,3.07776463,223.94,223.9,7.66]
[1759382082173,9.0377234,223.98,223.9,7.66]
[1759382082372,3.07793112,223.97,223.9,7.66]
[1759382082565,3.07793112,223.96,223.9,7.66]
[1759382082769,7.66,223.94,223.86,7.66]
[1759382082972,3.07793112,223.93,223.86,7.66]
[1759382083268,3.07793112,223.92,223.86,7.66]
[1759382083468,7.66,223.94,223.86,7.66]
[1759382083665,3.07806599,223.93,223.86,7.66]
[1759382083869,3.07806599,223.92,223.86,7.66]
[1759382084070,7.66,223.94,223.86,7.66]
[1759382084271,3.07806754,223.93,223.86,7.66]
[1759382084470,3.07806754,223.92,223.86,7.66]
[1759382084674,7.66,223.94,223.86,7.66]
[1759382084869,3.07803088,223.93,223.86,7.66]
[1759382085065,3.07803088,223.92,223.86,7.66]
[1759382085266,7.66,223.94,223.86,7.66]
[1759382085477,3.07800052,223.93,223.86,7.66]
[1759382085674,10.73800052,223.92,223.87,1.3777234]
[1759382085880,7.66,223.92,223.87,1.3777234]
[1759382086377,7.66,223.92,223.88,7.66]
[1759382087278,7.66,223.92,223.87,1.3777234]
[1759382087673,7.66,223.92,223.88,7.66]
[1759382088075,7.66,223.92,223.87,1.3777234]
[1759382088274,7.66,223.92,223.88,7.66]
[1759382088670,7.66,223.92,223.87,1.3777234]
[1759382088870,7.66,223.92,223.88,7.66]
[1759382089081,7.66,223.92,223.88,16.31]
[1759382089381,7.66,223.92,223.88,8.65]
[1759382089580,7.66,223.92,223.89,7.66]
[1759382089881,7.66,223.96,223.9,7.66]
[1759382090091,3.07813888,223.95,223.89,7.66]
[1759382090277,3.07813888,223.94,223.89,7.66]
[1759382090483,3.07813888,223.93,223.88,12.6679]
[1759382090783,9.0377234,223.97,223.89,7.66]
[1759382090983,3.07818779,223.96,223.89,7.66]
[1759382091184,3.07818779,223.95,223.89,7.66]
[1759382091482,9.0377234,223.97,223.89,7.66]
[1759382091483,3.07818779,223.94,223.89,7.66]
[1759382091684,3.07818779,223.93,223.89,7.66]
[1759382091984,9.0377234,223.97,223.89,7.66]
[1759382092184,3.07840768,223.96,223.89,7.66]
[1759382092385,3.07840768,223.95,223.89,7.66]
[1759382092583,3.07840768,223.94,223.88,12.6679]
[1759382092783,3.07840768,223.93,223.88,12.6679]
[1759382092980,9.0377234,223.97,223.89,11.6776]
[1759382093183,3.07855882,223.96,223.89,11.6776]
[1759382093483,3.07855882,223.95,223.89,11.6776]
[1759382093683,10.24855882,223.94,223.89,4.0176]
[1759382093982,3.07855882,223.93,223.9,7.31]
[1759382094188,7.17,223.96,223.9,7.31]
[1759382094379,7.17,223.94,223.9,7.31]
[1759382094584,3.07862322,223.93,223.9,7.31]
[1759382094785,7.17,223.96,223.9,7.31]
[1759382094983,7.17,223.94,223.9,7.31]
[1759382095184,3.07857265,223.93,223.9,7.31]
[1759382095387,7.17,223.94,223.9,7.31]
[1759382095582,3.07859264,223.93,223.9,7.31]
[1759382095783,7.17,223.94,223.9,7.31]
[1759382095986,3.07859315,223.93,223.9,7.31]
[1759382096190,7.17,223.94,223.9,7.31]
[1759382096490,3.07856141,223.93,223.9,7.31]
[1759382096689,7.17,223.94,223.89,4.0176]
[1759382096883,3.07856075,223.93,223.88,8.65]
[1759382097082,7.17,223.96,223.89,7.31]
[1759382097379,3.07856207,223.95,223.89,7.31]
[1759382097585,3.07856207,223.94,223.88,8.65]
[1759382097786,3.07856207,223.93,223.89,7.31]
[1759382097982,7.17,223.96,223.89,7.31]
[1759382098177,3.07853186,223.95,223.89,7.31]
[1759382098383,3.07853186,223.94,223.89,7.31]
[1759382098587,10.24853186,223.93,223.89,4.0177]
[1759382098786,7.17,223.93,223.9,7.31]
[1759382099992,7.17,223.96,223.9,7.31]
[1759382100190,3.07858315,223.95,223.9,7.31]
[1759382100392,3.07858315,223.94,223.9,7.31]
[1759382100689,3.07858315,223.93,223.89,4.0177]
[1759382100891,7.17,223.96,223.9,7.31]
[1759382101091,3.07872584,223.95,223.89,4.0177]
[1759382101291,10.24872584,223.94,223.89,4.0177]
[1759382101493,3.07872584,223.93,223.9,7.31]
[1759382101795,0.77730623,223.99,223.92,7.31]
[1759382101796,4.0159,223.99,223.92,7.31]
[1759382101990,3.06748027,223.98,223.92,7.31]
[1759382102292,10.23748027,223.97,223.91,4.0173]
[1759382102486,3.06748027,223.96,223.92,7.31]
[1759382102687,3.06748027,223.95,223.92,7.31]
[1759382102887,7.17,223.98,223.91,11.3273]
[1759382103087,3.06753759,223.97,223.91,11.3273]
[1759382103382,10.23753759,223.96,223.92,7.31]
[1759382103689,10.23753759,223.96,223.91,4.0173]
[1759382103690,7.17,223.94,223.9,8.6877234]
[1759382103890,7.17,223.96,223.9,7.31]
[1759382104089,3.06793352,223.95,223.9,7.31]
[1759382104395,7.17,223.93,223.9,7.31]
[1759382104693,7.17,223.94,223.9,7.31]
[1759382104891,4.0167,223.95,223.9,7.31]
[1759382105094,7.17,223.93,223.9,7.31]
[1759382105288,4.0167,223.95,223.9,7.31]
[1759382105490,7.17,223.93,223.9,7.31]
[1759382107094,7.17,223.93,223.88,12.6677]
[1759382107294,7.17,223.93,223.89,7.31]
[1759382107494,11.1863,223.97,223.9,7.31]
[1759382107693,3.0705696,223.96,223.9,7.31]
[1759382107995,3.0705696,223.95,223.89,7.31]
[1759382108187,3.0705696,223.94,223.9,7.31]
[1759382108493,7.17,223.96,223.89,7.31]
[1759382108697,3.07107622,223.95,223.89,7.31]
[1759382108888,10.24107622,223.94,223.9,7.31]
[1759382109088,7.17,223.94,223.89,7.31]
[1759382109296,7.17,223.94,223.89,4.0176]
[1759382109790,7.17,223.94,223.9,7.31]
[1759382109995,7.17,223.94,223.89,4.0176]
[1759382110196,7.17,223.94,223.9,7.31]
[1759382110495,3.07154639,223.93,223.9,7.31]
[1759382110696,7.17,223.96,223.9,7.31]
[1759382110892,7.17,223.94,223.9,7.31]
[1759382111194,4.0163,223.97,223.9,7.31]
[1759382111195,10.24164896,223.93,223.9,7.31]
[1759382111390,7.17,223.96,223.9,7.31]
[1759382111695,7.17,223.94,223.89,4.0176]
[1759382111897,3.07210266,223.93,223.89,4.0176]
[1759382112189,7.17,223.94,223.9,7.31]
[1759382112396,3.07221627,223.93,223.89,4.0176]
[1759382112596,7.17,223.94,223.89,4.0176]
[1759382112787,7.17,223.97,223.88,15.96]
[1759382112993,7.17,223.95,223.88,15.96]
[1759382113193,3.07226756,223.94,223.88,15.96]
[1759382113389,3.07226756,223.93,223.88,8.65]
[1759382113594,7.17,223.95,223.89,7.31]
[1759382113796,3.07245706,223.94,223.88,8.65]
[1759382113993,3.07245706,223.93,223.89,7.31]
[1759382114197,7.17,223.95,223.89,7.31]
[1759382114397,3.07235693,223.94,223.89,7.31]
[1759382114699,1.3777234,223.98,223.89,7.31]
[1759382114700,7.17,223.97,223.89,7.31]
[1759382114893,3.07235679,223.96,223.91,4.0174]
[1759382115193,10.24235679,223.95,223.91,11.3274]
[1759382115393,3.07235679,223.94,223.92,7.31]
[1759382115602,8.5477234,223.98,223.92,7.31]
[1759382115795,3.07235782,223.97,223.91,4.0174]
[1759382115996,10.24235782,223.96,223.92,7.31]
[1759382116196,3.07235782,223.95,223.91,4.0174]
[1759382116397,3.07235782,223.94,223.92,7.31]
[1759382116593,7.17,223.97,223.92,7.31]
[1759382116798,7.17,223.95,223.92,7.31]
[1759382117097,3.07236299,223.94,223.92,7.31]
[1759382117297,7.17,223.95,223.92,7.31]
[1759382117490,10.24230785,223.94,223.92,7.31]
[1759382117692,7.17,223.94,223.92,7.31]
[1759382118596,1.3777234,223.98,223.92,7.31]
[1759382118796,3.07228416,223.97,223.91,4.0174]
[1759382118998,7.17,223.95,223.92,7.31]
[1759382119299,3.07228416,223.94,223.92,7.31]
[1759382119499,7.17,223.95,223.92,7.31]
[1759382119800,3.07218173,223.94,223.92,7.31]
[1759382120101,7.17,223.95,223.92,7.31]
[1759382120303,3.07213027,223.94,223.92,7.31]
[1759382120601,7.17,223.95,223.92,7.31]
[1759382120900,3.07208795,223.94,223.92,7.31]
[1759382121100,7.17,223.95,223.92,7.31]
[1759382121402,3.07204572,223.94,223.92,7.31]
[1759382121589,7.17,223.95,223.92,7.31]
[1759382121792,3.07200521,223.94,223.92,7.31]
[1759382121993,7.17,223.95,223.92,7.31]
[1759382122289,3.07200455,223.94,223.92,7.31]
[1759382122490,7.17,223.95,223.92,7.31]
[1759382122693,3.07191762,223.94,223.92,7.31]
[1759382122999,7.17,223.95,223.92,7.31]
[1759382123302,3.07191809,223.94,223.92,7.31]
[1759382123496,7.17,223.95,223.92,7.31]
[1759382123794,3.07187392,223.94,223.92,7.31]
[1759382124090,7.17,223.95,223.92,7.31]
[1759382124296,3.07185282,223.94,223.92,7.31]
[1759382124499,7.17,223.95,223.91,4.0174]
[1759382124698,3.0718388,223.94,223.92,7.45]
[1759382124897,7.18,223.97,223.92,7.45]
[1759382125104,7.18,223.95,223.92,7.45]
[1759382125300,3.07183946,223.94,223.92,7.45]
[1759382125596,7.18,223.97,223.92,7.45]
[1759382125796,7.18,223.95,223.92,7.45]
[1759382126001,3.07178934,223.94,223.92,7.45]
[1759382126193,7.18,223.97,223.92,7.45]
[1759382126398,7.18,223.95,223.92,7.45]
[1759382126598,3.07172924,223.94,223.92,7.45]
[1759382126796,7.18,223.95,223.91,4.0174]
[1759382126999,3.07172792,223.94,223.92,7.45]
[1759382127199,7.18,223.95,223.91,4.0174]
[1759382127392,3.07166932,223.94,223.92,7.45]
[1759382127592,7.18,223.95,223.92,7.45]
[1759382127794,3.07167063,223.94,223.91,4.0174]
[1759382128001,7.18,223.95,223.92,7.45]
[1759382128302,3.07166932,223.94,223.91,4.0174]
[1759382128504,8.5577234,223.99,223.92,7.45]
[1759382128805,10.25171856,223.98,223.94,7.45]
[1759382128993,3.07171856,223.97,223.94,7.45]
[1759382129199,3.07171856,223.96,223.94,7.45]
[1759382129400,3.07171856,223.95,223.94,7.45]
[1759382131908,10.25138019,224.01,223.96,4.0164]
[1759382132098,3.07138019,224.0,223.96,4.0164]
[1759382132404,3.07138019,223.99,223.97,7.45]
[1759382132600,3.07138019,223.98,223.97,7.45]
[1759382133306,7.18,224.03,223.97,7.45]
[1759382133509,7.18,224.01,223.97,7.45]
[1759382133708,10.24981417,224.0,223.97,7.45]
[1759382134008,3.06981417,223.99,223.97,7.45]
[1759382134202,7.18,224.0,223.97,7.45]
[1759382134398,3.06923537,223.99,223.97,7.45]
[1759382134707,7.18,224.0,223.97,7.45]
[1759382135005,3.06923537,223.99,223.97,7.45]
[1759382135206,7.18,224.0,223.97,7.45]
[1759382139612,7.18,224.0,223.96,4.0164]
[1759382139814,7.18,224.0,223.97,7.45]
[1759382141119,8.5577234,224.08,224.0,7.45]
[1759382141320,3.06294237,224.07,224.01,1.3777234]
[1759382141620,3.06294237,224.06,224.05,4.0148]
[1759382141818,3.06294237,224.06,224.05,11.4648]
[1759382142217,10.24294237,224.08,224.05,11.4648]
[1759382142516,3.06294237,224.07,224.05,11.4648]
[1759382142919,7.18,224.1,224.02,7.45]
[1759382143217,7.18,224.08,224.02,7.45]
[1759382143418,7.18,224.06,224.02,7.45]
[1759382143818,11.1941,224.09,224.02,7.45]
[1759382144015,3.06000859,224.08,224.02,7.45]
[1759382144217,7.18,224.06,224.0,108.5]
[1759382144419,7.18,224.07,224.0,115.95]
[1759382144917,10.23924853,224.07,224.0,115.95]
[1759382145219,7.18,224.07,224.0,115.95]
[1759382145721,7.18,224.07,224.01,4.0155]
[1759382146121,10.23849117,224.07,224.01,4.0155]
[1759382146322,7.18,224.07,224.01,4.0155]
[1759382147316,7.18,224.13,224.04,7.45]
[1759382147515,3.05668536,224.12,224.04,7.45]
[1759382147824,3.05668536,224.11,224.04,7.45]
[1759382148023,3.05668536,224.12,224.04,7.45]
[1759382148615,3.05668536,224.12,224.04,11.4648]
[1759382149922,7.18,224.13,224.04,11.4648]
[1759382151321,7.18,224.13,224.05,7.45]
[1759382152928,11.1934,224.13,224.05,7.45]
[1759382154126,11.1934,224.13,224.05,11.4648]
[1759382158130,7.18,224.13,224.05,11.4648]
[1759382159531,7.84,224.14,224.05,11.4648]
[1759382160332,4.0132,224.15,224.05,11.4648]
[1759382160631,7.84,224.14,224.05,11.4648]
[1759382160831,7.84,224.12,224.05,11.4648]
[1759382161127,7.84,224.12,224.05,7.45]
[1759382162524,7.84,224.12,224.01,4.0155]
[1759382162832,5.19911012,224.14,224.01,11.7255]
[1759382163531,7.84,224.13,224.01,11.7255]
[1759382163936,5.19911012,224.14,224.01,11.7255]
[1759382164136,7.84,224.13,224.01,11.7255]
[1759382164338,5.19911012,224.14,224.01,11.7255]
[1759382164836,4.0138,224.11,224.01,11.7255]
[1759382165037,7.84,224.1,224.01,11.7255]
[1759382165835,4.0138,224.11,224.01,11.7255]
[1759382166130,7.84,224.1,224.01,11.7255]
[1759382167035,2.15007099,224.14,224.01,7.71]
[1759382167036,7.84,224.07,224.01,7.71]
[1759382171243,7.84,224.07,224.0,7.71]
[1759382171842,11.8546,224.07,224.0,7.71]
[1759382173041,4.0149,224.05,224.0,7.71]
[1759382173242,7.84,224.04,224.0,7.71]
[1759382173742,4.0149,224.05,223.94,5.91552381]
[1759382173743,7.84,224.03,223.94,5.91552381]
[1759382173942,7.84,224.01,223.94,5.91552381]
[1759382174142,7.84,224.01,223.95,7.71]
[1759382175634,11.8557,224.01,223.95,7.71]
[1759382175842,7.84,223.99,223.96,7.71]
[1759382176438,7.84,223.99,223.93,18.07]
[1759382177140,7.84,223.99,223.93,7.71]
[1759382177442,7.84,223.99,223.93,11.727]
[1759382178734,7.84,223.99,223.93,7.71]
[1759382180039,10.90161141,223.99,223.93,7.71]
[1759382180240,3.06161141,223.99,223.94,9.87]
[1759382180441,7.84,224.02,223.94,9.87]
[1759382180641,62.4573,224.04,223.94,9.87]
[1759382180642,7.84,223.97,223.94,9.87]
[1759382181443,4.0162,223.98,223.94,17.58]
[1759382181646,7.74,223.97,223.94,17.58]
[1759382181946,4.0162,223.98,223.94,17.58]
[1759382182147,7.74,223.97,223.94,17.58]
[1759382182647,7.74,223.97,223.94,17.74]
[1759382182950,7.74,223.97,223.95,7.87]
[1759382183844,4.0162,223.98,223.94,9.87]
[1759382184051,7.52,223.95,223.94,9.87]
[1759382186643,4.0166,223.96,223.94,9.87]
[1759382186848,7.52,223.95,223.94,9.87]
[1759382187251,4.4566,223.96,223.94,9.87]
[1759382187449,7.52,223.95,223.94,9.87]
[1759382193157,7.52,223.95,223.94,2.7687]
[1759382194852,7.52,223.95,223.86,7.66]
[1759382195549,4.0174,223.91,223.83,4.0187]
[1759382195754,7.52,223.95,223.84,7.66]
[1759382197159,4.0173,223.92,223.84,7.66]
[1759382197456,4.0173,223.92,223.86,7.66]
[1759382202858,4.0175,223.91,223.86,7.66]
[1759382203053,11.5375,223.91,223.85,16.45]
[1759382207656,7.52,224.0,223.9,1.37856645]
[1759382207858,7.52,224.0,223.94,7.66]
[1759382208760,8.89856645,224.0,223.89,9.03856645]
[1759382209660,4.0164,223.96,223.89,9.03856645]
[1759382212359,3.05970404,223.97,223.92,1.37856645]
[1759382212662,7.52,223.96,223.93,7.66]
[1759382215361,7.52,223.96,223.92,1.37856645]
[1759382215865,7.52,223.96,223.93,7.24]
[1759382216264,7.52,223.96,223.92,1.37856645]
[1759382216460,3.05970404,223.97,223.95,7.24]
[1759382216661,3.05970404,223.99,223.95,7.24]
[1759382216867,3.05970404,223.98,223.94,1.37856645]